lending/lending_fUSD_20250831
["ID","MTS","AMOUNT","RATE_DAILY","PERIOD"]
[382398648,1756600247422,-153.0,0.00042466,60]
[382398649,1756600247432,-153.0,0.00042466,60]
[382398650,1756600247441,-153.0,0.00042466,60]
[382398651,1756600247450,-153.0,0.00042466,60]
[382398652,1756600247460,-153.0,0.00042466,60]
[382398653,1756600247469,-153.0,0.00042466,60]
[382398654,1756600247479,-153.0,0.00042466,60]
[382398655,1756600247490,-153.0,0.00042466,60]
[382398656,1756600247500,-153.0,0.00042466,60]
[382398657,1756600247511,-153.0,0.00042466,60]
[382398658,1756600247521,-153.0,0.00042466,60]
[382398659,1756600247530,-153.0,0.00042466,60]
[382398660,1756600247540,-153.0,0.00042466,60]
[382398661,1756600247549,-153.0,0.00042466,60]
[382398662,1756600247559,-153.0,0.00042466,60]
[382398663,1756600247569,-153.0,0.00042466,60]
[382398664,1756600247579,-153.0,0.00042466,60]
[382398665,1756600247589,-153.0,0.00042466,60]
[382398666,1756600247599,-153.0,0.00042466,60]
[382398667,1756600247610,-153.0,0.00042466,60]
[382398668,1756600247620,-153.0,0.00042466,60]
[382398669,1756600247634,-153.0,0.00042466,60]
[382398670,1756600247643,-153.0,0.00042466,60]
[382398671,1756600247653,-153.0,0.00042466,60]
[382398672,1756600247663,-153.0,0.00042466,60]
[382398673,1756600247672,-153.0,0.00042466,60]
[382398674,1756600247682,-153.0,0.00042466,60]
[382398675,1756600247692,-153.0,0.00042466,60]
[382398676,1756600247702,-153.0,0.00042466,60]
[382398677,1756600247714,-153.0,0.00042466,60]
[382398678,1756600247725,-153.0,0.00042466,60]
[382398679,1756600247735,-153.0,0.00042466,60]
[382398680,1756600247744,-153.0,0.00042466,60]
[382398681,1756600247754,-153.0,0.00042466,60]
[382398682,1756600247763,-153.0,0.00042466,60]
[382398683,1756600247773,-153.0,0.00042466,60]
[382398684,1756600247782,-153.0,0.00042466,60]
[382398685,1756600247792,-153.0,0.00042466,60]
[382398686,1756600247802,-153.0,0.00042466,60]
[382398687,1756600247812,-153.0,0.00042466,60]
[382398688,1756600247821,-153.0,0.00042466,60]
[382398689,1756600247831,-153.0,0.00042466,60]
[382398690,1756600247840,-153.0,0.00042466,60]
[382398691,1756600247849,-153.0,0.00042466,60]
[382398692,1756600247859,-153.0,0.00042466,60]
[382398693,1756600247868,-153.0,0.00042466,60]
[382398694,1756600247877,-153.0,0.00042466,60]
[382398695,1756600247888,-153.0,0.00042466,60]
[382398696,1756600247898,-153.0,0.00042466,60]
[382398697,1756600247909,-153.0,0.00042466,60]
[382398698,1756600247919,-151.0,0.00042466,120]
[382398699,1756600247931,-151.0,0.00042466,120]
[382398700,1756600247942,-469.67,0.00042529,30]
[382398701,1756600247952,-800.21,0.00042529,30]
[382398702,1756600247962,-469.67,0.00042529,30]
[382398703,1756600247972,-800.21,0.00042529,30]
[382398704,1756600247981,-800.21,0.00042529,30]
[382398705,1756600247992,-469.67,0.00042529,30]
[382398706,1756600248003,-469.67,0.00042529,30]
[382398707,1756600248013,-800.21,0.00042529,30]
[382398708,1756600248022,-469.67,0.00042529,30]
[382398709,1756600248032,-800.21,0.00042529,30]
[382398710,1756600248043,-939.34,0.00042529,30]
[382398711,1756600248052,-800.21,0.00042529,30]
[382398712,1756600248062,-800.21,0.00042529,30]
[382398713,1756600248071,-800.21,0.00042529,30]
[382398714,1756600248081,-800.21,0.00042529,30]
[382398715,1756600248091,-800.21,0.00042529,30]
[382398716,1756600248102,-800.21,0.00042529,30]
[382398717,1756600248112,-800.21,0.00042529,30]
[382398718,1756600248122,-800.21,0.00042529,30]
[382398719,1756600248132,-800.21,0.00042529,30]
[382398720,1756600248142,-631.64,0.00042529,30]
[382398721,1756600248151,-1000.0,0.000427,7]
[382398722,1756600248161,-1127.0,0.000427,7]
[382398723,1756600248171,-154.0,0.000427,120]
[382398724,1756600248180,-1425.0,0.00042742,2]
[382398725,1756600248190,-431.42848765,0.00042774,2]
[382398726,1756600248199,-370.91026638,0.00042774,2]
[382398727,1756600248209,-1029.4317058,0.00042787,60]
[382398728,1756600248219,-151.0,0.00042787,120]
[382398729,1756600248228,-151.0,0.00042787,120]
[382398730,1756600248238,-540.24,0.00042803,30]
[382398731,1756600248249,-150.0,0.00042803,30]
[382398732,1756600248258,-1186.91,0.00042803,30]
[382398733,1756600248268,-150.0,0.00042803,30]
[382398734,1756600248278,-166.26,0.00042803,30]
[382398735,1756600248287,-408.97,0.00042803,30]
[382398736,1756600248297,-173.95,0.00042803,30]
[382398737,1756600248307,-173.95,0.00042803,30]
[382398738,1756600248316,-1186.91,0.00042803,30]
[382398739,1756600248326,-408.97,0.00042803,30]
[382398740,1756600248336,-150.0,0.00042803,30]
[382398741,1756600248346,-540.24,0.00042803,30]
[382398742,1756600248356,-166.26,0.00042803,30]
[382398743,1756600248366,-1186.91,0.00042803,30]
[382398744,1756600248376,-540.24,0.00042803,30]
[382398745,1756600248386,-408.97,0.00042803,30]
[382398746,1756600248396,-166.26,0.00042803,30]
[382398747,1756600248406,-150.0,0.00042803,30]
[382398748,1756600248415,-173.95,0.00042803,30]
[382398749,1756600248425,-540.24,0.00042803,30]
[382398750,1756600248435,-173.95,0.00042803,30]
[382398751,1756600248444,-1186.91,0.00042803,30]
[382398752,1756600248454,-166.26,0.00042803,30]
[382398753,1756600248464,-408.97,0.00042803,30]
[382398754,1756600248474,-540.24,0.00042803,30]
[382398755,1756600248484,-173.95,0.00042803,30]
[382398756,1756600248494,-1186.91,0.00042803,30]
[382398757,1756600248504,-408.97,0.00042803,30]
[382398758,1756600248514,-166.26,0.00042803,30]
[382398759,1756600248524,-540.24,0.00042803,30]
[382398760,1756600248534,-408.97,0.00042803,30]
[382398761,1756600248545,-166.26,0.00042803,30]
[382398762,1756600248555,-1186.91,0.00042803,30]
[382398763,1756600248565,-173.95,0.00042803,30]
[382398764,1756600248575,-540.24,0.00042803,30]
[382398765,1756600248585,-173.95,0.00042803,30]
[382398766,1756600248595,-408.97,0.00042803,30]
[382398767,1756600248605,-1186.91,0.00042803,30]
[382398768,1756600248615,-166.26,0.00042803,30]
[382398769,1756600248627,-540.24,0.00042803,30]
[382398770,1756600248640,-408.97,0.00042803,30]
[382398771,1756600248650,-173.95,0.00042803,30]
[382398772,1756600248660,-1186.91,0.00042803,30]
[382398773,1756600248671,-166.26,0.00042803,30]
[382398774,1756600248681,-173.95,0.00042803,30]
[382398775,1756600248691,-408.97,0.00042803,30]
[382398776,1756600248701,-540.24,0.00042803,30]
[382398777,1756600248711,-540.24,0.00042803,30]
[382398778,1756600248720,-540.24,0.00042803,30]
[382398779,1756600248730,-540.24,0.00042803,30]
[382398780,1756600248739,-540.24,0.00042803,30]
[382398781,1756600248748,-540.24,0.00042803,30]
[382398782,1756600248760,-540.24,0.00042803,30]
[382398783,1756600248770,-540.24,0.00042803,30]
[382398784,1756600248779,-157.93611283,0.00042829,30]
[382398785,1756600248789,-172.86,0.00042833,120]
[382398786,1756600248799,-150.0,0.00042839,2]
[382398787,1756600248808,-150.0,0.00042839,2]
[382398788,1756600248818,-150.0,0.00042839,2]
[382398789,1756600248828,-150.0,0.00042839,2]
[382398790,1756600248838,-155.912,0.00042839,2]
[382398791,1756600248848,-150.0,0.00042839,2]
[382398792,1756600248858,-150.0,0.00042839,2]
[382398793,1756600248867,-1086.0,0.00042869,30]
[382398794,1756600248877,-248.50301885,0.0004287,120]
[382398795,1756600248886,-150.0,0.00042936,2]
[382398796,1756600248896,-155.28072182,0.00042941,2]
[382398797,1756600248904,-20350.81091507,0.00043,30]
[382398798,1756600248913,-161.0,0.00043,45]
[382398799,1756600248924,-162.0,0.00043,60]
[382398800,1756600248934,-162.89,0.00043,44]
[382398801,1756600248944,-2000.0,0.00043,30]
[382398802,1756600248954,-1797.47904878,0.00043,30]
[382398803,1756600249486,-202.52095122,0.00043,30]
[382398804,1756600249496,-356.92404752,0.00043019,2]
[382398805,1756600249508,-1068.07595248,0.00043019,2]
[382398806,1756600249517,-1425.0,0.00043045,2]
[382398807,1756600249527,-150.0,0.00043047,2]
[382398808,1756600249536,-1000.0,0.00043142,14]
[382398809,1756600249546,-160.0,0.00043151,90]
[382398810,1756600249555,-1425.0,0.00043155,2]
[382398811,1756600249565,-580.92404752,0.00043156,2]
[382398812,1756600249577,-844.07595248,0.00043156,2]
[382398813,1756600249586,-1000.0,0.00043208,14]
[382398814,1756600249596,-445.32404752,0.00043248,2]
[382398815,1756600249607,-979.67595248,0.00043248,2]
[382398816,1756600249617,-1425.0,0.00043274,2]
[382398817,1756600249626,-150.0,0.00043276,14]
[382398818,1756600249641,-150.0,0.0004328,14]
[382398819,1756600249650,-541.0,0.000433,2]
[382398820,1756600249660,-255.105424,0.0004333,120]
[382398821,1756600249670,-1425.0,0.00043337,2]
[382398822,1756600249679,-1425.0,0.0004334,2]
[382398823,1756600249688,-303.57521473,0.00043343,2]
[382398824,1756600249698,-150.0,0.00043347,14]
[382398825,1756600249708,-151.07,0.00043351,30]
[382398826,1756600249719,-150.0,0.0004337,14]
[382398827,1756600249728,-1425.0,0.0004337,2]
[382398828,1756600249738,-150.0,0.00043378,2]
[382398829,1756600249748,-150.0,0.00043387,14]
[382398830,1756600249758,-150.0,0.00043388,2]
[382398831,1756600249767,-150.0,0.00043399,14]
[382398832,1756600249776,-150.0,0.00043403,14]
[382398833,1756600249786,-150.0,0.00043426,14]
[382398834,1756600249796,-1000.0,0.00043427,14]
[382398835,1756600249805,-150.0,0.00043428,14]
[382398836,1756600249815,-150.0,0.00043466,2]
[382398837,1756600249826,-151.0,0.00043488,120]
[382398838,1756600249835,-151.0,0.00043488,120]
[382398839,1756600249845,-151.0,0.00043488,120]
[382398840,1756600249854,-151.0,0.00043488,120]
[382398841,1756600249865,-151.0,0.00043488,120]
[382398842,1756600249876,-151.0,0.00043488,120]
[382398843,1756600249889,-151.0,0.00043488,120]
[382398844,1756600249898,-151.0,0.00043488,90]
[382398845,1756600249908,-151.0,0.00043488,120]
[382398846,1756600249917,-151.0,0.00043488,120]
[382398847,1756600249927,-151.0,0.00043488,120]
[382398848,1756600249939,-1425.0,0.00043511,2]
[382398849,1756600249949,-1425.0,0.00043539,2]
[382398850,1756600249959,-1425.0,0.00043541,2]
[382398851,1756600249969,-150.0,0.00043547,2]
[382398852,1756600249979,-150.0,0.00043556,14]
[382398853,1756600249988,-150.0,0.00043563,2]
[382398854,1756600249999,-150.0,0.0004358,14]
[382398855,1756600250010,-150.0,0.00043601,2]
[382398856,1756600250024,-1425.0,0.00043614,2]
[382398857,1756600250035,-150.0,0.00043616,14]
[382398858,1756600250046,-540.24,0.00043625,30]
[382398859,1756600250055,-540.24,0.00043625,30]
[382398860,1756600250065,-151.0,0.00043625,30]
[382398861,1756600250074,-151.0,0.00043625,30]
[382398862,1756600250084,-151.0,0.00043625,120]
[382398863,1756600250095,-151.0,0.00043625,120]
[382398864,1756600250104,-1000.0,0.00043627,14]
[382398865,1756600250114,-1382.03035217,0.00043635,2]
[382398866,1756600250406,-285.97718077,0.00037112,2]
[382398867,1756600250416,-151.0,0.00037112,2]
[382398868,1756600250430,-285.97718077,0.00037298,2]
[382398869,1756600250440,-151.0,0.00037298,2]
[382398870,1756600250449,-151.0,0.0003759,2]
[382398871,1756600250459,-162.79523231,0.000403,120]
[382398872,1756600250468,-315.0943964,0.00041889,2]
[382398873,1756600250492,-800.0,0.00041889,2]
[382398874,1756600250515,-141.9056036,0.00041889,2]
[382398875,1756600250525,-359.25216258,0.00042803,30]
[382398876,1756600250745,-150.0,0.00041596,3]
[382398877,1756600250754,-180.98783742,0.00042803,30]
[382398878,1756600250764,-42.96964783,0.00043635,2]
[382398879,1756600250773,-1000.0,0.00043654,14]
[382398880,1756600250785,-1425.0,0.00043678,2]
[382398881,1756600250795,-150.0,0.00043679,14]
[382398882,1756600250804,-1000.0,0.000437,14]
[382398883,1756600250813,-150.0,0.00043701,14]
[382398884,1756600250823,-300.0,0.0004372,2]
[382398885,1756600250833,-150.0,0.00043723,14]
[382398886,1756600250842,-162.53688916,0.00043735,2]
[382398887,1756600250851,-246.10521501,0.00043755,14]
[382398888,1756600250860,-1000.0,0.00043756,14]
[382398889,1756600250870,-1000.0,0.00043762,14]
[382398890,1756600250879,-150.0,0.00043775,2]
[382398891,1756600250889,-4250.0,0.00043781,120]
[382398892,1756600250898,-1000.0,0.00043782,14]
[382398893,1756600250907,-500.0,0.00043784,9]
[382398894,1756600250917,-500.0,0.00043784,2]
[382398895,1756600250926,-978.0,0.00043784,9]
[382398896,1756600250936,-500.0,0.00043784,9]
[382398897,1756600250945,-500.0,0.00043784,9]
[382398898,1756600250954,-150.0,0.00043784,9]
[382398899,1756600250963,-500.0,0.00043784,9]
[382398900,1756600250973,-500.0,0.00043784,9]
[382398901,1756600250982,-1000.0,0.00043788,14]
[382398902,1756600250991,-1425.0,0.00043792,2]
[382398903,1756600251000,-3537.79603119,0.00043796,30]
[382398904,1756600251009,-1425.0,0.00043801,2]
[382398905,1756600251018,-1425.0,0.00043801,2]
[382398906,1756600251028,-1000.0,0.00043813,14]
[382398907,1756600251037,-300.0,0.00043814,30]
[382398908,1756600251046,-154.725094,0.00043815,120]
[382398909,1756600251055,-200.0,0.00043815,2]
[382398910,1756600251064,-200.0,0.00043815,2]
[382398911,1756600251073,-200.0,0.00043815,2]
[382398912,1756600251082,-227.063694,0.00043815,2]
[382398913,1756600251091,-151.0,0.00043815,120]
[382398914,1756600251100,-151.0,0.00043815,120]
[382398915,1756600251110,-151.0,0.00043815,120]
[382398916,1756600251119,-151.0,0.00043815,120]
[382398917,1756600251129,-152.245427,0.00043815,120]
[382398918,1756600251138,-151.0,0.00043815,120]
[382398919,1756600251149,-151.0,0.00043815,120]
[382398920,1756600251158,-151.0,0.00043815,120]
[382398921,1756600251167,-151.0,0.00043815,120]
[382398922,1756600251176,-151.0,0.00043815,120]
[382398923,1756600251186,-151.0,0.00043815,120]
[382398924,1756600251195,-151.0,0.00043815,120]
[382398925,1756600251205,-151.0,0.00043815,120]
[382398926,1756600251214,-151.0,0.00043815,120]
[382398927,1756600251223,-151.0,0.00043815,120]
[382398928,1756600251232,-151.0,0.00043815,120]
[382398929,1756600251242,-151.0,0.00043815,120]
[382398930,1756600251252,-151.0,0.00043815,120]
[382398931,1756600251261,-151.0,0.00043815,120]
[382398932,1756600251271,-151.0,0.00043815,120]
[382398933,1756600251280,-151.0,0.00043815,120]
[382398934,1756600251290,-151.0,0.00043815,120]
[382398935,1756600251299,-151.0,0.00043815,120]
[382398936,1756600251309,-151.0,0.00043815,120]
[382398937,1756600251319,-152.395674,0.00043815,120]
[382398938,1756600251328,-151.0,0.00043815,120]
[382398939,1756600251337,-151.0,0.00043815,120]
[382398940,1756600251347,-151.0,0.00043815,120]
[382398941,1756600251357,-151.0,0.00043815,90]
[382398942,1756600251366,-151.0,0.00043815,120]
[382398943,1756600251375,-151.0,0.00043815,120]
[382398944,1756600251385,-151.0,0.00043815,120]
[382398945,1756600251394,-151.0,0.00043815,120]
[382398946,1756600251403,-151.0,0.00043815,120]
[382398947,1756600251413,-151.0,0.00043815,120]
[382398948,1756600251422,-33876.23902499,0.00043815,30]
[382398949,1756600251450,-1657.29618488,0.00043815,30]
[382398950,1756600251508,-162.79523231,0.000403,120]
[382398951,1756600251517,-721.90431853,0.00043815,30]
[382398954,1756600533054,161.75,0.00013699,2]
[382398955,1756600662463,2200.86603346,0.0003,7]
[382398959,1756600808096,1000.0,0.00022,120]
[382398965,1756601431961,-162.0,0.0002,6]
[382398966,1756601431971,-153.49,0.0002042,2]
[382398967,1756601431981,-153.49,0.00021822,2]
[382398968,1756601431991,-250.0,0.00022,2]
[382398969,1756601432002,-153.49,0.00023223,2]
[382398970,1756601432012,-153.49,0.00024624,2]
[382398971,1756601432022,-153.49,0.00026026,2]
[382398972,1756601432034,-153.49,0.00027427,2]
[382398973,1756601432044,-153.49,0.00028829,2]
[382398974,1756601432054,-153.49,0.0003023,2]
[382398975,1756601432063,-153.49,0.00031631,2]
[382398976,1756601432073,-526.0,0.00032751,3]
[382398977,1756601432082,-105.20943878,0.00032752,2]
[382398978,1756601432099,-107.12819598,0.00032752,2]
[382398979,1756601432110,-160.0,0.00032752,2]
[382398980,1756601432119,-1614.37855334,0.00032752,2]
[382398981,1756601436726,-570.9068,0.00032752,2]
[382398982,1756601436781,-15.58068012,0.00032752,2]
[382398983,1756601436791,-153.49,0.00033033,2]
[382398984,1756601436801,-173.03,0.00033499,2]
[382398985,1756601436810,-161.75,0.00034247,2]
[382398986,1756601436819,-153.49,0.00034434,2]
[382398987,1756601436829,-153.49,0.00035836,2]
[382398988,1756601436839,-200.0,0.00035837,2]
[382398989,1756601436848,-179.86931998,0.00035877,7]
[382398990,1756601436860,-22.13068002,0.00035877,7]
[382398991,1756601436869,-202.0,0.0003592,2]
[382398992,1756601436879,-168.0,0.00036522,2]
[382398993,1756601436888,-200.0,0.00036709,7]
[382398994,1756601436897,-13.45686816,0.00036732,7]
[382398995,1756601436938,-189.54313184,0.00036732,7]
[382398996,1756601436948,-203.0,0.00037004,2]
[382398997,1756601436958,-168.75899276,0.000372,120]
[382398998,1756601436970,-49.14601724,0.00037237,47]
[382398999,1756601436982,-671.70098276,0.00037237,47]
[382399000,1756601436992,-153.49,0.00037237,2]
[382399001,1756601437002,-200.0,0.00037307,7]
[382399002,1756601437012,-203.0,0.00037546,120]
[382399003,1756601437021,-200.0,0.00037893,120]
[382399004,1756601437032,-200.0,0.00037912,7]
[382399005,1756601437041,-174.65800919,0.00037914,7]
[382399007,1756601437052,-27.34199081,0.00037914,7]
[382399009,1756601437062,-200.0,0.00038178,2]
[382399010,1756601437071,-200.0,0.00038383,2]
[382399011,1756601437081,-11181.02,0.00038393,2]
[382399012,1756601437091,-200.0,0.00038398,7]
[382399013,1756601437100,-152.0,0.0003841,3]
[382399015,1756601437110,-500.0,0.00038432,7]
[382399017,1756601437119,-477.15770228,0.00038432,7]
[382399019,1756601437128,-24214.74,0.00038433,2]
[382399022,1756601437138,-202.0,0.00038464,2]
[382399025,1756601437147,-666.0,0.00038484,3]
[382399028,1756601437156,-202.0,0.00038513,120]
[382399030,1756601437166,-1000.0,0.00038528,2]
[382399032,1756601437175,-153.49,0.00038638,2]
[382399035,1756601437186,-200.0,0.00038648,7]
[382399037,1756601437195,-200.0,0.0003876,120]
[382399039,1756601437204,-812.8285,0.00038888,30]
[382399041,1756601437214,-200.0,0.0003891,2]
[382399043,1756601437223,-200.0,0.00039058,2]
[382399045,1756601437233,-200.0,0.00039065,2]
[382399047,1756601437246,-1000.0,0.000392,2]
[382399048,1756601437256,-200.0,0.00039345,2]
[382399050,1756601437267,-200.0,0.00039354,2]
[382399052,1756601437276,-200.0,0.00039365,2]
[382399054,1756601437286,-153.49,0.0004004,2]
[382399057,1756601437297,-9698.08,0.00040068,2]
[382399059,1756601437309,-1909.8518069,0.00040126,2]
[382399061,1756601437321,-539.73598152,0.00040126,2]
[382399063,1756601437333,-2221.06832668,0.00040126,2]
[382399114,1756601437993,-1119.7,0.00040126,2]
[382399131,1756601438153,-853.6838849,0.00040126,2]
[382399133,1756601438162,-593.68,0.000403,30]
[382399135,1756601438171,-254.7709748,0.00040411,2]
[382399151,1756601438310,-245.2290252,0.00040411,2]
[382399153,1756601438319,-250.0,0.00040613,2]
[382399155,1756601438329,-551.94103332,0.00040686,120]
[382399312,1756601440139,-1871.86896668,0.00040686,120]
[382399314,1756601440149,-160.0,0.00041,90]
[382399316,1756601440159,-284.21055764,0.00041096,2]
[382399318,1756601440169,-200.0,0.00041096,20]
[382399320,1756601440179,-1425.0,0.00041145,2]
[382399322,1756601440196,-1425.0,0.00041553,2]
[382399324,1756601440205,-1425.0,0.00041627,2]
[382399326,1756601440216,-160.0,0.00041702,7]
[382399327,1756601440226,-276.1209,0.00041723,2]
[382399330,1756601440236,-2033.0,0.00041771,2]
[382399332,1756601440249,-924.0,0.00041771,2]
[382399334,1756601440258,-1257.0,0.00041771,2]
[382399336,1756601440268,-127.74685102,0.00041771,2]
[382399338,1756601440280,-3249.25314898,0.00041771,2]
[382399340,1756601440291,-1575.0,0.00041771,2]
[382399342,1756601440304,-1299.0,0.00041771,2]
[382399344,1756601440314,-567.0,0.00041771,2]
[382399346,1756601440325,-600.0,0.00041771,2]
[382399348,1756601440334,-21120.0,0.00041771,2]
[382399350,1756601440343,-718.0,0.00041771,2]
[382399352,1756601440355,-5163.56343345,0.00041771,2]
[382399355,1756601440366,-986.43656655,0.00041771,2]
[382399356,1756601440376,-849.96982157,0.00041771,2]
[382399617,1756601443124,-150.0,0.00041596,3]
[382399619,1756601443135,-351.13388373,0.00041771,2]
[382399665,1756601443594,-309.099,0.00041771,2]
[382399672,1756601443649,-2647.7972947,0.00041771,2]
[382399674,1756601443659,-150.0,0.00041771,2]
[382399676,1756601443668,-150.0,0.00042096,3]
[382399678,1756601443678,-1425.0,0.00042223,2]
[382399680,1756601443687,-702.04182548,0.00042317,7]
[382399688,1756601443756,-450.0,0.00042317,7]
[382399840,1756601446367,-759.37945741,0.00042317,7]
[382399841,1756601446387,-528.3788,0.00042317,7]
[382399842,1756601446399,-1001.20674812,0.00042317,7]
[382399843,1756601446419,-626.99316899,0.00042317,7]
[382399844,1756601446429,-500.0,0.0004235,5]
[382399845,1756601446439,-150.0,0.00042357,2]
[382399846,1756601446449,-150.0,0.0004243,2]
[382399847,1756601446458,-456.0,0.000425,2]
[382399848,1756601446469,-1000.0,0.000426,2]
[382399849,1756601446479,-1000.0,0.00042635,14]
[382399850,1756601446488,-150.0,0.00042681,2]
[382399851,1756601446498,-150.0,0.00042695,2]
[382399852,1756601446507,-1000.0,0.00042697,14]
[382399853,1756601446517,-1000.0,0.000427,7]
[382399854,1756601446526,-0.34538573,0.00042727,2]
[382399855,1756601446563,-1101.775,0.00042727,2]
[382399856,1756601446574,-322.87961427,0.00042727,2]
[382399857,1756601446583,-77.12038573,0.00042862,2]
[382399858,1756601446595,-1347.87961427,0.00042862,2]
[382399859,1756601446604,-302.00718605,0.00042898,5]
[382399860,1756601446614,-800.68126468,0.00042926,15]
[382399861,1756601446625,-12426.2749921,0.00042926,15]
[382399862,1756601446635,-1000.0,0.00042977,14]
[382399863,1756601446645,-500.0,0.00043,120]
[382399864,1756601446654,-153.0,0.00043,90]
[382399865,1756601446664,-1425.0,0.00043001,2]
[382399866,1756601446673,-157.93611284,0.00043013,30]
[382399867,1756601446683,-153.0,0.00043014,90]
[382399868,1756601446693,-1425.0,0.00043019,2]
[382399869,1756601446704,-150.0,0.00043041,2]
[382399870,1756601446714,-1000.0,0.00043059,14]
[382399871,1756601446726,-1000.0,0.00043069,14]
[382399872,1756601446738,-1425.0,0.0004308,2]
[382399873,1756601446747,-1000.0,0.00043128,14]
[382399874,1756601446757,-1000.0,0.00043189,14]
[382399875,1756601446767,-150.0,0.0004319,2]
[382399876,1756601446776,-1182.74706506,0.000432,2]
[382399877,1756601446984,-242.25293494,0.000432,2]
[382399878,1756601446994,-1425.0,0.00043212,2]
[382399879,1756601447003,-1000.0,0.00043226,14]
[382399880,1756601447012,-988.03052159,0.00043226,14]
[382399882,1756601548736,174.02,0.00013699,2]
[382400122,1756602007122,1000.0,0.00023156,120]
[382400135,1756602632444,-162.69,0.00021051,2]
[382400136,1756602632453,-250.0,0.00023156,2]
[382400137,1756602632462,-250.0,0.00027815,2]
[382400138,1756602632471,-500.0,0.00028036,2]
[382400139,1756602632480,-500.0,0.00028036,2]
[382400140,1756602632489,-236.52372541,0.00028036,2]
[382400141,1756602632497,-156.0,0.00028036,2]
[382400142,1756602632507,-500.0,0.00028036,2]
[382400143,1756602632515,-500.0,0.00028036,2]
[382400144,1756602632523,-500.0,0.00028036,2]
[382400145,1756602632532,-438.9286393,0.00028036,2]
[382400146,1756602632542,-500.0,0.00028036,2]
[382400147,1756602632550,-500.0,0.00028036,2]
[382400148,1756602632559,-300.0,0.00028037,2]
[382400149,1756602632568,-1200.0,0.00028037,2]
[382400150,1756602632577,-3138.90475681,0.00028039,2]
[382400151,1756602632586,-3138.90475681,0.00028315,2]
[382400152,1756602632595,-189.75307198,0.00028589,2]
[382400154,1756602632604,-480.53442736,0.00028589,2]
[382400156,1756602632613,-1972.42810582,0.0002859,2]
[382400158,1756602632624,-1166.47665099,0.0002859,2]
[382400160,1756602632634,-544.0,0.00030411,2]
[382400162,1756602632643,-212.33763476,0.00033022,2]
[382400163,1756602632655,-500.0,0.00036082,2]
[382400164,1756602632664,-155.0,0.00037025,2]
[382400165,1756602632673,-577.59599187,0.00037025,120]
[382400167,1756602632684,-754.80815226,0.00037025,120]
[382400168,1756602632693,-389.20408824,0.00037025,120]
[382400169,1756602632704,-27.87365271,0.00037025,120]
[382400170,1756602632712,-560.09126946,0.00037025,64]
[382400171,1756602632723,-2146.90279755,0.00037025,64]
[382400172,1756602632732,-129.17100245,0.00037779,7]
[382400173,1756602632751,-44.82899755,0.00037779,7]
[382400174,1756602632759,-174.0,0.00037792,2]
[382400175,1756602632768,-155.0,0.00038,120]
[382400176,1756602632777,-154.0,0.00038,120]
[382400177,1756602632786,-174.0,0.00038242,2]
[382400178,1756602632795,-174.02,0.00038356,2]
[382400179,1756602632805,-176.0,0.00038367,2]
[382400180,1756602632814,-174.0,0.00038444,2]
[382400183,1756602632822,-187.67,0.00038455,2]